[Event "Titled Tuesday Blitz November 07 Early 2023"]
[White "Sattarov, Bobir"]
[Black "Santos Flores, Alberto"]
[WhiteFideId "14203081"]
[BlackFideId "3601234"]
[WhiteElo "2775"]
[BlackElo "2497"]
[Result "0-1"]
[Round "3"]
[TimeControl "180+1"]
[Date "2023.11.07"]
[WhiteClock "0:00:00"]
[BlackClock "0:00:08"]
[Board "88"]

1. e4 {[%clk 0:03:00]}  e6 {[%clk 0:02:59]} 2. Qe2 {[%clk 0:03:01]}  c5 {[%clk 0:02:59]} 3. Nf3 {[%clk 0:03:00]}  Nc6 {[%clk 0:02:59]} 4. g3 {[%clk 0:03:00]}  g6 {[%clk 0:02:57]} 5. Bg2 {[%clk 0:02:50]}  Bg7 {[%clk 0:02:58]} 6. O-O {[%clk 0:02:46]}  Nge7 {[%clk 0:02:58]} 7. Re1 {[%clk 0:02:46]}  d6 {[%clk 0:02:56]} 8. c3 {[%clk 0:02:42]}  Rb8 {[%clk 0:02:54]} 9. d4 {[%clk 0:02:34]}  cxd4 {[%clk 0:02:49]} 10. cxd4 {[%clk 0:02:35]}  d5 {[%clk 0:02:49]} 11. e5 {[%clk 0:02:30]}  b5 {[%clk 0:02:48]} 12. g4 {[%clk 0:02:22]}  b4 {[%clk 0:02:47]} 13. Nbd2 {[%clk 0:02:16]}  Qb6 {[%clk 0:02:47]} 14. Nb3 {[%clk 0:02:13]}  Ba6 {[%clk 0:02:44]} 15. Qd1 {[%clk 0:02:12]}  Na5 {[%clk 0:02:35]} 16. Nc5 {[%clk 0:02:11]}  Nb7 {[%clk 0:02:29]} 17. Qa4+ {[%clk 0:01:45]}  Bb5 {[%clk 0:02:20]} 18. Qxb4 {[%clk 0:01:45]}  Nxc5 {[%clk 0:02:18]} 19. dxc5 {[%clk 0:01:41]}  Qc7 {[%clk 0:02:18]} 20. Qc3 {[%clk 0:01:27]}  Nc6 {[%clk 0:02:13]} 21. Bg5 {[%clk 0:01:17]}  O-O {[%clk 0:02:11]} 22. Bf6 {[%clk 0:01:10]}  Bxf6 {[%clk 0:02:05]} 23. exf6 {[%clk 0:01:11]}  Qf4 {[%clk 0:02:06]} 24. g5 {[%clk 0:01:07]}  Rfe8 {[%clk 0:01:57]} 25. Ne5 {[%clk 0:00:37]}  Qxg5 {[%clk 0:01:50]} 26. a4 {[%clk 0:00:35]}  d4 {[%clk 0:01:35]} 27. Qg3 {[%clk 0:00:35]}  Qxg3 {[%clk 0:01:28]} 28. fxg3 {[%clk 0:00:33]}  Nxe5 {[%clk 0:01:28]} 29. axb5 {[%clk 0:00:14]}  Nd3 {[%clk 0:01:18]} 30. Red1 {[%clk 0:00:14]}  Nxc5 {[%clk 0:01:18]} 31. Rxd4 {[%clk 0:00:14]}  Nb3 {[%clk 0:01:17]} 32. Rda4 {[%clk 0:00:12]}  Nxa1 {[%clk 0:01:17]} 33. Rxa1 {[%clk 0:00:12]}  Red8 {[%clk 0:00:56]} 34. Bc6 {[%clk 0:00:11]}  Rd2 {[%clk 0:00:55]} 35. Rxa7 {[%clk 0:00:10]}  Rxb2 {[%clk 0:00:54]} 36. h4 {[%clk 0:00:10]}  h5 {[%clk 0:00:54]} 37. Kf1 {[%clk 0:00:09]}  R2xb5 {[%clk 0:00:40]} 38. Bxb5 {[%clk 0:00:09]}  Rxb5 {[%clk 0:00:41]} 39. Ke2 {[%clk 0:00:02]}  Rf5 {[%clk 0:00:40]} 40. Ke3 {[%clk 0:00:03]}  Rxf6 {[%clk 0:00:40]} 41. Ra5 {[%clk 0:00:03]}  Rf5 {[%clk 0:00:40]} 42. Ra4 {[%clk 0:00:04]}  Kg7 {[%clk 0:00:40]} 43. Rb4 {[%clk 0:00:04]}  Ra5 {[%clk 0:00:40]} 44. Kf3 {[%clk 0:00:03]}  e5 {[%clk 0:00:39]} 45. Rb6 {[%clk 0:00:03]}  Ra4 {[%clk 0:00:34]} 46. Kf2 {[%clk 0:00:03]}  Ra3 {[%clk 0:00:28]} 47. Rc6 {[%clk 0:00:02]}  f5 {[%clk 0:00:25]} 48. Rb6 {[%clk 0:00:02]}  Ra4 {[%clk 0:00:22]} 49. Rc6 {[%clk 0:00:02]}  Ra7 {[%clk 0:00:18]} 50. Kf3 {[%clk 0:00:02]}  Rf7 {[%clk 0:00:19]} 51. Rd6 {[%clk 0:00:02]}  Rf6 {[%clk 0:00:19]} 52. Rd7+ {[%clk 0:00:02]}  Kh6 {[%clk 0:00:19]} 53. Re7 {[%clk 0:00:03]}  e4+ {[%clk 0:00:18]} 54. Kf4 {[%clk 0:00:03]}  Ra6 {[%clk 0:00:18]} 55. Rc7 {[%clk 0:00:02]}  Ra3 {[%clk 0:00:17]} 56. Ke5 {[%clk 0:00:02]}  Rxg3 {[%clk 0:00:16]} 57. Rc8 {[%clk 0:00:02]}  Kg7 {[%clk 0:00:15]} 58. Rc7+ {[%clk 0:00:02]}  Kf8 {[%clk 0:00:14]} 59. Kf6 {[%clk 0:00:02]}  Ke8 {[%clk 0:00:14]} 60. Ke6 {[%clk 0:00:03]}  Kd8 {[%clk 0:00:14]} 61. Rd7+ {[%clk 0:00:03]}  Kc8 {[%clk 0:00:14]} 62. Rf7 {[%clk 0:00:02]}  e3 {[%clk 0:00:13]} 63. Kd6 {[%clk 0:00:03]}  Rg4 {[%clk 0:00:10]} 64. Kc6 {[%clk 0:00:02]}  Kd8 {[%clk 0:00:10]} 65. Kd6 {[%clk 0:00:03]}  Kc8 {[%clk 0:00:09]} 66. Rf8+ {[%clk 0:00:03]}  Kb7 {[%clk 0:00:09]} 67. Rf6 {[%clk 0:00:03]}  e2 {[%clk 0:00:08]} 68. Re6 {[%clk 0:00:00]}  Re4 {[%clk 0:00:08]} 0-1


[Site "https://www.chess.com"]

[Event "Titled Tuesday Blitz November 07 Early 2023"]
[White "Mystery2007"]
[Black "Hayrapetyan, Hovik"]
[BlackFideId "13302639"]
[WhiteElo "2492"]
[BlackElo "2766"]
[Result "0-1"]
[Round "3"]
[TimeControl "180+1"]
[Date "2023.11.07"]
[WhiteClock "0:00:01"]
[BlackClock "0:01:10"]
[Board "89"]

1. Nf3 {[%clk 0:03:00]}  Nf6 {[%clk 0:02:59]} 2. b3 {[%clk 0:03:00]}  d5 {[%clk 0:02:59]} 3. Bb2 {[%clk 0:02:58]}  Bg4 {[%clk 0:02:56]} 4. c4 {[%clk 0:02:53]}  e6 {[%clk 0:02:56]} 5. e3 {[%clk 0:02:52]}  Nbd7 {[%clk 0:02:56]} 6. Be2 {[%clk 0:02:53]}  c6 {[%clk 0:02:56]} 7. h3 {[%clk 0:02:53]}  Bh5 {[%clk 0:02:56]} 8. O-O {[%clk 0:02:52]}  Bd6 {[%clk 0:02:56]} 9. d4 {[%clk 0:02:45]}  O-O {[%clk 0:02:56]} 10. Nbd2 {[%clk 0:02:45]}  Ne4 {[%clk 0:02:48]} 11. Nxe4 {[%clk 0:02:42]}  dxe4 {[%clk 0:02:49]} 12. Nd2 {[%clk 0:02:43]}  Bg6 {[%clk 0:02:44]} 13. Bh5 {[%clk 0:02:27]}  Qg5 {[%clk 0:02:39]} 14. Bxg6 {[%clk 0:02:25]}  Qxg6 {[%clk 0:02:40]} 15. Qg4 {[%clk 0:01:51]}  f5 {[%clk 0:02:35]} 16. Qxg6 {[%clk 0:01:50]}  hxg6 {[%clk 0:02:36]} 17. h4 {[%clk 0:01:40]}  Nf6 {[%clk 0:02:34]} 18. g3 {[%clk 0:01:37]}  a5 {[%clk 0:02:29]} 19. a3 {[%clk 0:01:37]}  Rfc8 {[%clk 0:02:27]} 20. c5 {[%clk 0:01:35]}  Be7 {[%clk 0:02:26]} 21. Nc4 {[%clk 0:01:35]}  Nd7 {[%clk 0:02:24]} 22. b4 {[%clk 0:01:32]}  a4 {[%clk 0:02:06]} 23. Rfd1 {[%clk 0:01:30]}  Kf7 {[%clk 0:02:01]} 24. Rd2 {[%clk 0:01:22]}  Rd8 {[%clk 0:01:58]} 25. Rad1 {[%clk 0:01:22]}  g5 {[%clk 0:01:56]} 26. hxg5 {[%clk 0:01:20]}  Kg6 {[%clk 0:01:56]} 27. Ne5+ {[%clk 0:01:07]}  Nxe5 {[%clk 0:01:55]} 28. dxe5 {[%clk 0:01:08]}  Rd5 {[%clk 0:01:53]} 29. Rxd5 {[%clk 0:00:57]}  exd5 {[%clk 0:01:54]} 30. Kg2 {[%clk 0:00:55]}  Bxg5 {[%clk 0:01:48]} 31. Rh1 {[%clk 0:00:51]}  Re8 {[%clk 0:01:47]} 32. Bd4 {[%clk 0:00:35]}  Bd8 {[%clk 0:01:46]} 33. f4 {[%clk 0:00:13]}  exf3+ {[%clk 0:01:43]} 34. Kxf3 {[%clk 0:00:13]}  Kf7 {[%clk 0:01:22]} 35. Kf4 {[%clk 0:00:12]}  Ke6 {[%clk 0:01:19]} 36. Rh7 {[%clk 0:00:12]}  g5+ {[%clk 0:01:19]} 37. Kf3 {[%clk 0:00:12]}  Re7 {[%clk 0:01:18]} 38. Rxe7+ {[%clk 0:00:10]}  Bxe7 {[%clk 0:01:16]} 39. g4 {[%clk 0:00:11]}  Bd8 {[%clk 0:01:16]} 40. Kg3 {[%clk 0:00:06]}  Bc7 {[%clk 0:01:16]} 41. Kf3 {[%clk 0:00:06]}  Bxe5 {[%clk 0:01:15]} 42. Kg2 {[%clk 0:00:02]}  Bxd4 {[%clk 0:01:09]} 43. exd4 {[%clk 0:00:02]}  fxg4 {[%clk 0:01:09]} 44. Kg3 {[%clk 0:00:01]}  Kf5 {[%clk 0:01:10]} 0-1


[Site "https://www.chess.com"]

[Event "Titled Tuesday Blitz November 07 Early 2023"]
[White "Korchmar, Vasiliy"]
[Black "Kopczynski, Michal"]
[WhiteFideId "24131750"]
[BlackFideId "1124200"]
[WhiteElo "2738"]
[BlackElo "2488"]
[Result "1-0"]
[Round "3"]
[TimeControl "180+1"]
[Date "2023.11.07"]
[WhiteClock "0:00:33"]
[BlackClock "0:00:04"]
[Board "92"]

1. e4 {[%clk 0:03:00]}  b6 {[%clk 0:03:00]} 2. d4 {[%clk 0:02:58]}  Bb7 {[%clk 0:03:00]} 3. Bd3 {[%clk 0:02:58]}  e6 {[%clk 0:03:01]} 4. Nf3 {[%clk 0:02:56]}  Nf6 {[%clk 0:03:01]} 5. Qe2 {[%clk 0:02:56]}  d5 {[%clk 0:03:02]} 6. e5 {[%clk 0:02:55]}  Nfd7 {[%clk 0:03:02]} 7. O-O {[%clk 0:02:54]}  c5 {[%clk 0:03:02]} 8. c3 {[%clk 0:02:54]}  Nc6 {[%clk 0:03:03]} 9. Nbd2 {[%clk 0:02:28]}  Qc7 {[%clk 0:03:03]} 10. Rd1 {[%clk 0:02:25]}  O-O-O {[%clk 0:03:00]} 11. Nf1 {[%clk 0:02:17]}  h6 {[%clk 0:03:00]} 12. Ng3 {[%clk 0:02:15]}  Re8 {[%clk 0:02:59]} 13. Be3 {[%clk 0:02:09]}  f5 {[%clk 0:02:58]} 14. h4 {[%clk 0:01:51]}  g6 {[%clk 0:02:49]} 15. c4 {[%clk 0:01:51]}  cxd4 {[%clk 0:01:58]} 16. Nxd4 {[%clk 0:01:47]}  Qxe5 {[%clk 0:01:31]} 17. Nxc6 {[%clk 0:01:35]}  Bxc6 {[%clk 0:01:32]} 18. cxd5 {[%clk 0:01:35]}  Bxd5 {[%clk 0:01:20]} 19. Ba6+ {[%clk 0:01:18]}  Kb8 {[%clk 0:01:20]} 20. Qd2 {[%clk 0:01:18]}  Bd6 {[%clk 0:01:15]} 21. Bd4 {[%clk 0:01:17]}  Qf4 {[%clk 0:01:07]} 22. Bxh8 {[%clk 0:01:17]}  Qxh4 {[%clk 0:00:50]} 23. Bc3 {[%clk 0:00:47]}  f4 {[%clk 0:00:50]} 24. Ne4 {[%clk 0:00:38]}  Bc7 {[%clk 0:00:40]} 25. f3 {[%clk 0:00:38]}  Ne5 {[%clk 0:00:31]} 26. Bxe5 {[%clk 0:00:36]}  Bxe5 {[%clk 0:00:32]} 27. Rac1 {[%clk 0:00:34]}  Bxe4 {[%clk 0:00:26]} 28. Qd7 {[%clk 0:00:34]}  Rf8 {[%clk 0:00:04]} 29. Qc8+ {[%clk 0:00:33]} 1-0


[Site "https://www.chess.com"]

[Event "Titled Tuesday Blitz November 07 Early 2023"]
[White "subham777"]
[Black "Llorente Zaro, Alfonso"]
[BlackFideId "2254131"]
[WhiteElo "2483"]
[BlackElo "2736"]
[Result "0-1"]
[Round "3"]
[TimeControl "180+1"]
[Date "2023.11.07"]
[WhiteClock "0:00:01"]
[BlackClock "0:00:58"]
[Board "93"]

1. e4 {[%clk 0:03:00]}  c6 {[%clk 0:02:59]} 2. c4 {[%clk 0:03:00]}  d5 {[%clk 0:02:59]} 3. cxd5 {[%clk 0:03:00]}  cxd5 {[%clk 0:02:58]} 4. exd5 {[%clk 0:03:01]}  Nf6 {[%clk 0:02:59]} 5. Nc3 {[%clk 0:03:01]}  Nbd7 {[%clk 0:02:59]} 6. Nf3 {[%clk 0:02:56]}  Nb6 {[%clk 0:02:59]} 7. Bb5+ {[%clk 0:02:57]}  Bd7 {[%clk 0:02:59]} 8. Bxd7+ {[%clk 0:02:55]}  Qxd7 {[%clk 0:02:55]} 9. O-O {[%clk 0:02:54]}  Nfxd5 {[%clk 0:02:50]} 10. Re1 {[%clk 0:02:51]}  e6 {[%clk 0:02:50]} 11. d4 {[%clk 0:02:50]}  Rc8 {[%clk 0:02:46]} 12. Ne5 {[%clk 0:02:28]}  Qd8 {[%clk 0:02:38]} 13. Qf3 {[%clk 0:02:20]}  Qf6 {[%clk 0:02:34]} 14. Qg3 {[%clk 0:02:10]}  Nxc3 {[%clk 0:02:18]} 15. bxc3 {[%clk 0:02:10]}  Bd6 {[%clk 0:02:18]} 16. Qd3 {[%clk 0:01:45]}  O-O {[%clk 0:02:12]} 17. Rb1 {[%clk 0:01:38]}  Rfd8 {[%clk 0:02:11]} 18. Qg3 {[%clk 0:01:33]}  Bxe5 {[%clk 0:02:09]} 19. Rxe5 {[%clk 0:01:27]}  Qg6 {[%clk 0:01:58]} 20. Qxg6 {[%clk 0:01:14]}  hxg6 {[%clk 0:01:59]} 21. Re3 {[%clk 0:01:02]}  Nd5 {[%clk 0:01:57]} 22. Rxb7 {[%clk 0:00:49]}  Nxe3 {[%clk 0:01:55]} 23. Bxe3 {[%clk 0:00:49]}  Rxc3 {[%clk 0:01:54]} 24. Rxa7 {[%clk 0:00:47]}  Rxd4 {[%clk 0:01:52]} 25. g3 {[%clk 0:00:42]}  Rd1+ {[%clk 0:01:52]} 26. Kg2 {[%clk 0:00:41]}  f6 {[%clk 0:01:48]} 27. a4 {[%clk 0:00:31]}  Ra3 {[%clk 0:01:40]} 28. a5 {[%clk 0:00:31]}  g5 {[%clk 0:01:37]} 29. a6 {[%clk 0:00:24]}  Rda1 {[%clk 0:01:34]} 30. Ra8+ {[%clk 0:00:24]}  Kh7 {[%clk 0:01:33]} 31. a7 {[%clk 0:00:25]}  e5 {[%clk 0:01:25]} 32. g4 {[%clk 0:00:20]}  R1a2 {[%clk 0:01:21]} 33. Rd8 {[%clk 0:00:11]}  Rxe3 {[%clk 0:01:16]} 34. a8=Q {[%clk 0:00:10]}  Rxa8 {[%clk 0:01:16]} 35. Rxa8 {[%clk 0:00:11]}  Rb3 {[%clk 0:01:17]} 36. Ra7 {[%clk 0:00:10]}  Kg6 {[%clk 0:01:17]} 37. f3 {[%clk 0:00:09]}  Re3 {[%clk 0:01:14]} 38. Ra4 {[%clk 0:00:08]}  Kh6 {[%clk 0:01:13]} 39. Kg3 {[%clk 0:00:08]}  Rb3 {[%clk 0:01:11]} 40. Kg2 {[%clk 0:00:08]}  Rb7 {[%clk 0:01:07]} 41. Rc4 {[%clk 0:00:08]}  Kg6 {[%clk 0:01:08]} 42. Rc6 {[%clk 0:00:07]}  Re7 {[%clk 0:01:08]} 43. Ra6 {[%clk 0:00:06]}  Kf7 {[%clk 0:01:08]} 44. Kg3 {[%clk 0:00:07]}  g6 {[%clk 0:01:09]} 45. h4 {[%clk 0:00:06]}  gxh4+ {[%clk 0:01:02]} 46. Kxh4 {[%clk 0:00:07]}  Rb7 {[%clk 0:01:02]} 47. Kg3 {[%clk 0:00:07]}  Rd7 {[%clk 0:01:00]} 48. Rb6 {[%clk 0:00:06]}  Rd3 {[%clk 0:01:00]} 49. Kg2 {[%clk 0:00:07]}  Kg7 {[%clk 0:00:59]} 50. Ra6 {[%clk 0:00:06]}  Rd4 {[%clk 0:00:58]} 51. Rb6 {[%clk 0:00:06]}  Rf4 {[%clk 0:00:58]} 52. Rc6 {[%clk 0:00:06]}  Kh6 {[%clk 0:00:58]} 53. Rb6 {[%clk 0:00:03]}  Kg5 {[%clk 0:00:59]} 54. Rb4 {[%clk 0:00:01]}  Rxb4 {[%clk 0:00:58]} 0-1


[Site "https://www.chess.com"]

[Event "Titled Tuesday Blitz November 07 Early 2023"]
[White "Kanyamarala, Trisha"]
[Black "Danielyan, Vahe"]
[WhiteFideId "45004722"]
[BlackFideId "13304828"]
[WhiteElo "2482"]
[BlackElo "2728"]
[Result "0-1"]
[Round "3"]
[TimeControl "180+1"]
[Date "2023.11.07"]
[WhiteClock "0:00:23"]
[BlackClock "0:00:19"]
[Board "94"]

1. c4 {[%clk 0:02:55]}  e5 {[%clk 0:02:59]} 2. Nc3 {[%clk 0:02:55]}  Bb4 {[%clk 0:02:57]} 3. Nd5 {[%clk 0:02:53]}  Be7 {[%clk 0:02:56]} 4. g4 {[%clk 0:02:53]}  Nc6 {[%clk 0:02:47]} 5. Bg2 {[%clk 0:02:50]}  d6 {[%clk 0:02:46]} 6. h3 {[%clk 0:02:50]}  Nf6 {[%clk 0:02:44]} 7. d3 {[%clk 0:02:49]}  O-O {[%clk 0:02:32]} 8. Nf3 {[%clk 0:02:48]}  Nxd5 {[%clk 0:02:31]} 9. cxd5 {[%clk 0:02:47]}  Nb4 {[%clk 0:02:17]} 10. Qb3 {[%clk 0:02:35]}  a5 {[%clk 0:02:16]} 11. Bd2 {[%clk 0:02:26]}  Na6 {[%clk 0:02:11]} 12. Bxa5 {[%clk 0:02:00]}  Nc5 {[%clk 0:02:11]} 13. Qc3 {[%clk 0:02:00]}  e4 {[%clk 0:01:29]} 14. Nd2 {[%clk 0:01:18]}  exd3 {[%clk 0:01:26]} 15. Bb4 {[%clk 0:01:04]}  Bf6 {[%clk 0:01:23]} 16. Qc1 {[%clk 0:01:03]}  dxe2 {[%clk 0:01:22]} 17. Bxc5 {[%clk 0:01:02]}  dxc5 {[%clk 0:01:21]} 18. Ne4 {[%clk 0:01:00]}  Bd4 {[%clk 0:01:18]} 19. Kxe2 {[%clk 0:00:57]}  b6 {[%clk 0:01:15]} 20. Rd1 {[%clk 0:00:50]}  Ba6+ {[%clk 0:01:15]} 21. Kf3 {[%clk 0:00:50]}  Re8 {[%clk 0:01:16]} 22. Kg3 {[%clk 0:00:49]}  Kh8 {[%clk 0:00:38]} 23. Ng5 {[%clk 0:00:42]}  Qf6 {[%clk 0:00:32]} 24. Ne4 {[%clk 0:00:23]}  Rxe4 {[%clk 0:00:20]} 25. Bxe4 {[%clk 0:00:23]}  Qxf2# {[%clk 0:00:19]} 0-1


[Site "https://www.chess.com"]

[Event "Titled Tuesday Blitz November 07 Early 2023"]
[White "Kourkoulos-Arditis, Stamatis"]
[Black "Remolar Gallen, Jose"]
[WhiteFideId "4221990"]
[BlackFideId "2215187"]
[WhiteElo "2720"]
[BlackElo "2477"]
[Result "1-0"]
[Round "3"]
[TimeControl "180+1"]
[Date "2023.11.07"]
[WhiteClock "0:00:12"]
[BlackClock "0:00:15"]
[Board "96"]

1. d4 {[%clk 0:03:00]}  Nf6 {[%clk 0:02:57]} 2. Nf3 {[%clk 0:03:01]}  g6 {[%clk 0:02:57]} 3. Bg5 {[%clk 0:03:01]}  Bg7 {[%clk 0:02:56]} 4. c3 {[%clk 0:03:01]}  h6 {[%clk 0:02:56]} 5. Bh4 {[%clk 0:03:01]}  d6 {[%clk 0:02:52]} 6. Nbd2 {[%clk 0:03:01]}  Nbd7 {[%clk 0:02:51]} 7. e4 {[%clk 0:02:56]}  e5 {[%clk 0:02:52]} 8. Bd3 {[%clk 0:02:55]}  O-O {[%clk 0:02:49]} 9. O-O {[%clk 0:02:55]}  Qe8 {[%clk 0:02:50]} 10. Re1 {[%clk 0:02:55]}  Nh5 {[%clk 0:02:50]} 11. Bf1 {[%clk 0:02:47]}  Nf4 {[%clk 0:02:39]} 12. Bg3 {[%clk 0:02:44]}  Ne6 {[%clk 0:02:33]} 13. dxe5 {[%clk 0:02:41]}  dxe5 {[%clk 0:02:26]} 14. Nc4 {[%clk 0:02:40]}  Nf4 {[%clk 0:02:09]} 15. Qd2 {[%clk 0:01:59]}  g5 {[%clk 0:01:58]} 16. Ne3 {[%clk 0:01:29]}  Nf6 {[%clk 0:01:56]} 17. Bxf4 {[%clk 0:01:04]}  gxf4 {[%clk 0:01:13]} 18. Nd5 {[%clk 0:01:03]}  Nxd5 {[%clk 0:01:13]} 19. exd5 {[%clk 0:00:58]}  Bg4 {[%clk 0:01:12]} 20. Nd4 {[%clk 0:00:46]}  Qd7 {[%clk 0:01:08]} 21. Nb3 {[%clk 0:00:43]}  Rad8 {[%clk 0:01:03]} 22. f3 {[%clk 0:00:31]}  Bf5 {[%clk 0:01:01]} 23. Rad1 {[%clk 0:00:31]}  b6 {[%clk 0:00:58]} 24. Bd3 {[%clk 0:00:29]}  a5 {[%clk 0:00:55]} 25. Qc2 {[%clk 0:00:25]}  Bxd3 {[%clk 0:00:52]} 26. Rxd3 {[%clk 0:00:26]}  Qa4 {[%clk 0:00:48]} 27. Re4 {[%clk 0:00:20]}  Qb5 {[%clk 0:00:25]} 28. c4 {[%clk 0:00:19]}  Qb4 {[%clk 0:00:25]} 29. a3 {[%clk 0:00:19]}  Qd6 {[%clk 0:00:23]} 30. c5 {[%clk 0:00:19]}  bxc5 {[%clk 0:00:23]} 31. Nxc5 {[%clk 0:00:18]}  Rb8 {[%clk 0:00:19]} 32. h3 {[%clk 0:00:14]}  Rb5 {[%clk 0:00:17]} 33. Rc4 {[%clk 0:00:14]}  Rfb8 {[%clk 0:00:17]} 34. Ne4 {[%clk 0:00:14]}  Qd8 {[%clk 0:00:15]} 35. b3 {[%clk 0:00:12]}  Rxd5 {[%clk 0:00:14]} 36. Rxd5 {[%clk 0:00:13]}  Qxd5 {[%clk 0:00:15]} 37. Rxc7 {[%clk 0:00:13]}  Qxb3 {[%clk 0:00:15]} 38. Rc8+ {[%clk 0:00:12]}  Kh7 {[%clk 0:00:15]} 39. Nf6# {[%clk 0:00:12]} 1-0


[Site "https://www.chess.com"]

[Event "Titled Tuesday Blitz November 07 Early 2023"]
[White "vishwa_vijeta"]
[Black "vlajkovicS"]
[WhiteElo "2462"]
[BlackElo "2693"]
[Result "1-0"]
[Round "3"]
[TimeControl "180+1"]
[Date "2023.11.07"]
[WhiteClock "0:01:46"]
[BlackClock "0:02:49"]
[Board "101"]

1. e4 {[%clk 0:03:00]}  a6 {[%clk 0:02:58]} 2. c4 {[%clk 0:02:55]}  e6 {[%clk 0:02:57]} 3. Nc3 {[%clk 0:02:52]}  c6 {[%clk 0:02:56]} 4. Nf3 {[%clk 0:02:46]}  b5 {[%clk 0:02:56]} 5. d4 {[%clk 0:02:41]}  b4 {[%clk 0:02:56]} 6. Ne2 {[%clk 0:02:41]}  d5 {[%clk 0:02:56]} 7. exd5 {[%clk 0:02:40]}  cxd5 {[%clk 0:02:57]} 8. cxd5 {[%clk 0:02:41]}  exd5 {[%clk 0:02:57]} 9. Nf4 {[%clk 0:02:41]}  Nf6 {[%clk 0:02:58]} 10. Bd3 {[%clk 0:02:41]}  Be7 {[%clk 0:02:59]} 11. O-O {[%clk 0:02:36]}  O-O {[%clk 0:02:59]} 12. Bd2 {[%clk 0:02:31]}  Nc6 {[%clk 0:02:59]} 13. Rc1 {[%clk 0:02:29]}  Na5 {[%clk 0:02:59]} 14. Re1 {[%clk 0:02:22]}  Bb7 {[%clk 0:02:56]} 15. a3 {[%clk 0:02:04]}  bxa3 {[%clk 0:02:53]} 16. Bxa5 {[%clk 0:01:58]}  Qxa5 {[%clk 0:02:54]} 17. Rxe7 {[%clk 0:01:57]}  axb2 {[%clk 0:02:55]} 18. Rb1 {[%clk 0:01:54]}  Qb4 {[%clk 0:02:54]} 19. Re2 {[%clk 0:01:52]}  Bc6 {[%clk 0:02:53]} 20. Rexb2 {[%clk 0:01:52]}  Qd6 {[%clk 0:02:54]} 21. Ne5 {[%clk 0:01:51]}  Be8 {[%clk 0:02:54]} 22. Rb6 {[%clk 0:01:49]}  Qc7 {[%clk 0:02:52]} 23. Rxf6 {[%clk 0:01:47]}  gxf6 {[%clk 0:02:53]} 24. Qg4+ {[%clk 0:01:45]}  Kh8 {[%clk 0:02:49]} 25. Qf5 {[%clk 0:01:46]} 1-0


[Site "https://www.chess.com"]

[Event "Titled Tuesday Blitz November 07 Early 2023"]
[White "Aradhya, Garg"]
[Black "Mazurkiewicz, Michal"]
[WhiteFideId "25006746"]
[BlackFideId "1124943"]
[WhiteElo "2689"]
[BlackElo "2461"]
[Result "1-0"]
[Round "3"]
[TimeControl "180+1"]
[Date "2023.11.07"]
[WhiteClock "0:01:12"]
[BlackClock "0:00:05"]
[Board "102"]

1. d4 {[%clk 0:03:00]}  Nf6 {[%clk 0:02:58]} 2. c4 {[%clk 0:03:01]}  e5 {[%clk 0:02:58]} 3. dxe5 {[%clk 0:03:01]}  Ng4 {[%clk 0:02:59]} 4. Bf4 {[%clk 0:03:01]}  Nc6 {[%clk 0:02:59]} 5. Nf3 {[%clk 0:02:59]}  Bb4+ {[%clk 0:02:59]} 6. Nc3 {[%clk 0:02:59]}  Bxc3+ {[%clk 0:02:55]} 7. bxc3 {[%clk 0:02:59]}  Qe7 {[%clk 0:02:55]} 8. Qd5 {[%clk 0:02:56]}  f6 {[%clk 0:02:55]} 9. exf6 {[%clk 0:02:55]}  Nxf6 {[%clk 0:02:56]} 10. Qd3 {[%clk 0:02:48]}  d6 {[%clk 0:02:56]} 11. e3 {[%clk 0:02:49]}  Ne4 {[%clk 0:02:49]} 12. Be2 {[%clk 0:02:49]}  Bf5 {[%clk 0:02:48]} 13. Nd4 {[%clk 0:02:47]}  Bg6 {[%clk 0:02:38]} 14. Nxc6 {[%clk 0:02:47]}  bxc6 {[%clk 0:02:39]} 15. Qd4 {[%clk 0:02:47]}  O-O {[%clk 0:02:16]} 16. O-O {[%clk 0:02:47]}  c5 {[%clk 0:02:07]} 17. Qd5+ {[%clk 0:02:45]}  Bf7 {[%clk 0:02:07]} 18. Qd3 {[%clk 0:02:46]}  Bg6 {[%clk 0:02:07]} 19. Bf3 {[%clk 0:02:29]}  Rae8 {[%clk 0:01:54]} 20. Qd5+ {[%clk 0:02:26]}  Kh8 {[%clk 0:01:48]} 21. Rac1 {[%clk 0:02:24]}  Bf7 {[%clk 0:01:47]} 22. Qd3 {[%clk 0:02:24]}  Bg6 {[%clk 0:01:46]} 23. Qe2 {[%clk 0:02:24]}  Qf6 {[%clk 0:01:38]} 24. Bxe4 {[%clk 0:02:24]}  Bxe4 {[%clk 0:01:23]} 25. f3 {[%clk 0:02:22]}  Bc6 {[%clk 0:01:22]} 26. Bg3 {[%clk 0:02:21]}  Rb8 {[%clk 0:01:01]} 27. e4 {[%clk 0:02:21]}  Rb6 {[%clk 0:01:00]} 28. e5 {[%clk 0:02:21]}  Qe6 {[%clk 0:00:59]} 29. Rfe1 {[%clk 0:02:21]}  Re8 {[%clk 0:00:58]} 30. Qd3 {[%clk 0:02:14]}  d5 {[%clk 0:00:49]} 31. cxd5 {[%clk 0:02:14]}  Bxd5 {[%clk 0:00:50]} 32. c4 {[%clk 0:02:14]}  Bc6 {[%clk 0:00:47]} 33. f4 {[%clk 0:02:10]}  Rb2 {[%clk 0:00:45]} 34. Rc2 {[%clk 0:02:10]}  Rxc2 {[%clk 0:00:26]} 35. Qxc2 {[%clk 0:02:11]}  g6 {[%clk 0:00:26]} 36. Bh4 {[%clk 0:02:10]}  Rb8 {[%clk 0:00:23]} 37. h3 {[%clk 0:01:43]}  Rb4 {[%clk 0:00:23]} 38. Rc1 {[%clk 0:01:42]}  a5 {[%clk 0:00:16]} 39. Qd2 {[%clk 0:01:41]}  Qd7 {[%clk 0:00:16]} 40. Qxd7 {[%clk 0:01:34]}  Bxd7 {[%clk 0:00:16]} 41. Be7 {[%clk 0:01:32]}  Rb2 {[%clk 0:00:15]} 42. a3 {[%clk 0:01:21]}  Bc6 {[%clk 0:00:15]} 43. g4 {[%clk 0:01:21]}  Rg2+ {[%clk 0:00:15]} 44. Kf1 {[%clk 0:01:21]}  Rh2 {[%clk 0:00:15]} 45. Rc3 {[%clk 0:01:19]}  Rh1+ {[%clk 0:00:09]} 46. Kf2 {[%clk 0:01:18]}  Rh2+ {[%clk 0:00:09]} 47. Kg3 {[%clk 0:01:19]}  Rg2+ {[%clk 0:00:09]} 48. Kh4 {[%clk 0:01:19]}  Kg7 {[%clk 0:00:09]} 49. Bxc5 {[%clk 0:01:19]}  h6 {[%clk 0:00:10]} 50. Be7 {[%clk 0:01:18]}  Rb2 {[%clk 0:00:08]} 51. g5 {[%clk 0:01:13]}  h5 {[%clk 0:00:08]} 52. e6 {[%clk 0:01:13]}  a4 {[%clk 0:00:09]} 53. Bf6+ {[%clk 0:01:14]}  Kf8 {[%clk 0:00:09]} 54. Rd3 {[%clk 0:01:14]}  Rb3 {[%clk 0:00:08]} 55. Rd8+ {[%clk 0:01:12]}  Be8 {[%clk 0:00:09]} 56. Rc8 {[%clk 0:01:08]}  Rxa3 {[%clk 0:00:09]} 57. Rxc7 {[%clk 0:01:09]}  Rb3 {[%clk 0:00:09]} 58. Rh7 {[%clk 0:01:09]}  Bf7 {[%clk 0:00:04]} 59. Rh8+ {[%clk 0:01:09]}  Bg8 {[%clk 0:00:04]} 60. e7+ {[%clk 0:01:10]}  Kf7 {[%clk 0:00:05]} 61. Rxg8 {[%clk 0:01:11]}  Kxg8 {[%clk 0:00:05]} 62. e8=Q+ {[%clk 0:01:11]}  Kh7 {[%clk 0:00:05]} 63. Qh8# {[%clk 0:01:12]} 1-0


[Site "https://www.chess.com"]